[Event "Late-Titled-Tuesday-Blitz-February-20-2024"]
[Site "Chess.com"]
[Date "2024.02.20"]
[Round "5"]
[White "Cambek64"]
[Black "Agentxya"]
[Result "1-0"]
[WhiteElo "2429"]
[BlackElo "2219"]
[TimeControl "180+1"]
[EndTime "14:57:02 PST"]
[Termination "Cambek64 won by checkmate"]

1. Nf3 {[%clk 0:02:49.2]} 1... Nf6 {[%clk 0:02:55.4]} 2. c4 {[%clk 0:02:49.4]}
2... c6 {[%clk 0:02:55]} 3. Nc3 {[%clk 0:02:49.6]} 3... d5 {[%clk 0:02:55.2]} 4.
d4 {[%clk 0:02:49.5]} 4... e6 {[%clk 0:02:54.6]} 5. Bg5 {[%clk 0:02:47.2]} 5...
Nbd7 {[%clk 0:02:54]} 6. e3 {[%clk 0:02:46.6]} 6... Qa5 {[%clk 0:02:52.9]} 7.
Nd2 {[%clk 0:02:44]} 7... Bb4 {[%clk 0:02:48.9]} 8. Qc2 {[%clk 0:02:43.9]} 8...
h6 {[%clk 0:02:36]} 9. Bh4 {[%clk 0:02:39]} 9... c5 {[%clk 0:02:36.2]} 10. Nb3
{[%clk 0:02:36]} 10... Qa4 {[%clk 0:02:34.4]} 11. Kd1 {[%clk 0:02:15.2]} 11...
Bxc3 {[%clk 0:02:21.7]} 12. Qxc3 {[%clk 0:02:05.3]} 12... cxd4 {[%clk
0:02:01.7]} 13. exd4 {[%clk 0:02:00]} 13... O-O {[%clk 0:01:49]} 14. c5 {[%clk
0:01:56.3]} 14... Ne4 {[%clk 0:01:39.5]} 15. Qc2 {[%clk 0:01:55.9]} 15... e5
{[%clk 0:01:29.5]} 16. f3 {[%clk 0:01:55.1]} 16... Nef6 {[%clk 0:01:09.6]} 17.
Bf2 {[%clk 0:01:50.9]} 17... exd4 {[%clk 0:01:06.7]} 18. Bxd4 {[%clk 0:01:51]}
18... Re8 {[%clk 0:00:55.3]} 19. Bd3 {[%clk 0:01:50.8]} 19... Ne5 {[%clk
0:00:54]} 20. Re1 {[%clk 0:01:39.7]} 20... Nxd3 {[%clk 0:00:48.3]} 21. Rxe8+
{[%clk 0:01:36.3]} 21... Nxe8 {[%clk 0:00:49.2]} 22. Qxd3 {[%clk 0:01:35.8]}
22... Be6 {[%clk 0:00:37.7]} 23. Ke2 {[%clk 0:01:31.5]} 23... Nc7 {[%clk
0:00:17.9]} 24. Kf2 {[%clk 0:01:28.7]} 24... Re8 {[%clk 0:00:16.9]} 25. a3
{[%clk 0:01:14.8]} 25... Bd7 {[%clk 0:00:16.5]} 26. Re1 {[%clk 0:01:13.3]} 26...
Rxe1 {[%clk 0:00:15]} 27. Kxe1 {[%clk 0:01:13.7]} 27... Bb5 {[%clk 0:00:15.1]}
28. Qc3 {[%clk 0:01:12.2]} 28... Ne6 {[%clk 0:00:14.5]} 29. Kf2 {[%clk
0:01:10.6]} 29... Bc4 {[%clk 0:00:12.3]} 30. Nd2 {[%clk 0:00:32.6]} 30... Qd1
{[%clk 0:00:11.3]} 31. Kg3 {[%clk 0:00:20.4]} 31... Ba6 {[%clk 0:00:08.8]} 32.
Bf2 {[%clk 0:00:19.4]} 32... Qe2 {[%clk 0:00:08.3]} 33. Nb3 {[%clk 0:00:19.3]}
33... h5 {[%clk 0:00:07.9]} 34. h4 {[%clk 0:00:18.1]} 34... g5 {[%clk
0:00:07.6]} 35. Qe3 {[%clk 0:00:18]} 35... gxh4+ {[%clk 0:00:07.3]} 36. Kxh4
{[%clk 0:00:18.3]} 36... Qxe3 {[%clk 0:00:06.9]} 37. Bxe3 {[%clk 0:00:17.9]}
37... Bc4 {[%clk 0:00:06]} 38. Nd2 {[%clk 0:00:16.8]} 38... Bb5 {[%clk
0:00:04.3]} 39. Kxh5 {[%clk 0:00:16.5]} 39... d4 {[%clk 0:00:04.9]} 40. Bf2
{[%clk 0:00:16.5]} 40... Kg7 {[%clk 0:00:05.2]} 41. b4 {[%clk 0:00:16]} 41... f5
{[%clk 0:00:04.9]} 42. g4 {[%clk 0:00:14.1]} 42... Kf6 {[%clk 0:00:05.4]} 43.
g5+ {[%clk 0:00:13.5]} 43... Nxg5 {[%clk 0:00:04.4]} 44. Bh4 {[%clk 0:00:12.9]}
44... Ke6 {[%clk 0:00:02.6]} 45. Bxg5 {[%clk 0:00:13.3]} 45... Kd5 {[%clk
0:00:02.8]} 46. Kg6 {[%clk 0:00:11.7]} 46... Bd7 {[%clk 0:00:02.3]} 47. Kf6
{[%clk 0:00:11.8]} 47... d3 {[%clk 0:00:02.9]} 48. Ke7 {[%clk 0:00:12.1]} 48...
Bc8 {[%clk 0:00:03.5]} 49. Kd8 {[%clk 0:00:12.2]} 49... Be6 {[%clk 0:00:04.2]}
50. Kc7 {[%clk 0:00:12.7]} 50... b6 {[%clk 0:00:04.1]} 51. c6 {[%clk 0:00:11.9]}
51... Kd4 {[%clk 0:00:03.6]} 52. Kb7 {[%clk 0:00:12]} 52... Kc3 {[%clk
0:00:04.5]} 53. c7 {[%clk 0:00:12]} 53... Bd5+ {[%clk 0:00:05.4]} 54. Kb8 {[%clk
0:00:11.7]} 54... Be6 {[%clk 0:00:05.9]} 55. c8=Q+ {[%clk 0:00:11.5]} 55... Bxc8
{[%clk 0:00:06.6]} 56. Kxc8 {[%clk 0:00:11.9]} 56... Kb2 {[%clk 0:00:07.3]} 57.
Kb7 {[%clk 0:00:11.9]} 57... Kxa3 {[%clk 0:00:07.8]} 58. Kxa7 {[%clk 0:00:12.3]}
58... Kxb4 {[%clk 0:00:08.2]} 59. Kxb6 {[%clk 0:00:12.7]} 59... Kc3 {[%clk
0:00:08.8]} 60. Kc6 {[%clk 0:00:13.2]} 60... Kd4 {[%clk 0:00:09.7]} 61. Kd6
{[%clk 0:00:13.6]} 61... Kc3 {[%clk 0:00:08.2]} 62. Ke5 {[%clk 0:00:13.2]} 62...
Kc2 {[%clk 0:00:09.1]} 63. Kxf5 {[%clk 0:00:13.4]} 63... Kd1 {[%clk 0:00:10]}
64. Ke4 {[%clk 0:00:13.5]} 64... Ke2 {[%clk 0:00:10.9]} 65. Be3 {[%clk
0:00:12.4]} 65... Ke1 {[%clk 0:00:10.8]} 66. Kxd3 {[%clk 0:00:12.8]} 66... Kd1
{[%clk 0:00:11.7]} 67. f4 {[%clk 0:00:13]} 67... Kc1 {[%clk 0:00:12.6]} 68. f5
{[%clk 0:00:13.5]} 68... Kb2 {[%clk 0:00:13.2]} 69. f6 {[%clk 0:00:14.3]} 69...
Ka3 {[%clk 0:00:13.9]} 70. f7 {[%clk 0:00:15]} 70... Kb4 {[%clk 0:00:14.8]} 71.
f8=Q+ {[%clk 0:00:14.8]} 71... Kb5 {[%clk 0:00:15.7]} 72. Qc8 {[%clk 0:00:14.2]}
72... Kb4 {[%clk 0:00:15.4]} 73. Qc4+ {[%clk 0:00:14]} 73... Ka3 {[%clk
0:00:15.9]} 74. Qb3# {[%clk 0:00:13.1]} 1-0

[Event "Late-Titled-Tuesday-Blitz-February-20-2024"]
[Site "Chess.com"]
[Date "2024.02.20"]
[Round "5"]
[White "Inepton_Fermion"]
[Black "chessydotcom"]
[Result "1-0"]
[WhiteElo "2382"]
[BlackElo "2128"]
[TimeControl "180+1"]
[EndTime "14:57:39 PST"]
[Termination "Inepton_Fermion won by resignation"]

1. d4 {[%clk 0:02:57.7]} 1... d5 {[%clk 0:02:58.7]} 2. Nc3 {[%clk 0:02:47.7]}
2... e6 {[%clk 0:02:56.7]} 3. e4 {[%clk 0:02:40.2]} 3... dxe4 {[%clk 0:02:55.7]}
4. Nxe4 {[%clk 0:02:41.1]} 4... Nf6 {[%clk 0:02:52.1]} 5. Bg5 {[%clk 0:02:36.3]}
5... Be7 {[%clk 0:02:51.8]} 6. Bxf6 {[%clk 0:02:35.6]} 6... Bxf6 {[%clk
0:02:51.8]} 7. Nf3 {[%clk 0:02:36.3]} 7... Nc6 {[%clk 0:02:43.1]} 8. Bb5 {[%clk
0:02:34.8]} 8... O-O {[%clk 0:02:27.4]} 9. Bxc6 {[%clk 0:02:28.1]} 9... bxc6
{[%clk 0:02:26.7]} 10. O-O {[%clk 0:02:28.8]} 10... Rb8 {[%clk 0:02:21.1]} 11.
b3 {[%clk 0:02:19.3]} 11... Qe7 {[%clk 0:02:16.4]} 12. Qe2 {[%clk 0:02:11.5]}
12... Rd8 {[%clk 0:02:13.6]} 13. Rfd1 {[%clk 0:02:04.3]} 13... Bb7 {[%clk
0:02:06.1]} 14. Qc4 {[%clk 0:02:03.3]} 14... g6 {[%clk 0:01:40.7]} 15. Nxf6+
{[%clk 0:01:52.8]} 15... Qxf6 {[%clk 0:01:39.8]} 16. Ne5 {[%clk 0:01:53.5]}
16... Rd6 {[%clk 0:01:22.2]} 17. Rd3 {[%clk 0:01:53.2]} 17... c5 {[%clk
0:01:02.6]} 18. Qxc5 {[%clk 0:01:43.9]} 18... Qd8 {[%clk 0:00:34.3]} 19. Rad1
{[%clk 0:01:28.6]} 19... Rd5 {[%clk 0:00:33]} 20. Qc3 {[%clk 0:01:24.3]} 20...
Qg5 {[%clk 0:00:10.3]} 21. Nf3 {[%clk 0:01:19.6]} 21... Qe7 {[%clk 0:00:09.3]}
22. Qd2 {[%clk 0:01:18.9]} 22... Rbd8 {[%clk 0:00:09.4]} 23. c4 {[%clk
0:01:18.7]} 23... R5d7 {[%clk 0:00:09.7]} 24. Ne5 {[%clk 0:01:18.7]} 24... Rd6
{[%clk 0:00:10]} 25. Qe3 {[%clk 0:01:18.4]} 25... f6 {[%clk 0:00:09.8]} 26. Ng4
{[%clk 0:01:15.4]} 26... h5 {[%clk 0:00:09.2]} 27. Nh6+ {[%clk 0:00:52.1]} 27...
Kg7 {[%clk 0:00:09.5]} 28. g4 {[%clk 0:00:52.9]} 28... Rh8 {[%clk 0:00:08.8]}
29. Nf5+ {[%clk 0:00:39.8]} 29... gxf5 {[%clk 0:00:08.3]} 30. gxf5 {[%clk
0:00:40.7]} 30... Rg8 {[%clk 0:00:07.4]} 31. Kf1 {[%clk 0:00:35.5]} 31... Kf8
{[%clk 0:00:08.2]} 32. c5 {[%clk 0:00:27.9]} 32... Bg2+ {[%clk 0:00:08.4]} 33.
Ke2 {[%clk 0:00:27.8]} 33... Ra6 {[%clk 0:00:09.3]} 34. a4 {[%clk 0:00:23.2]}
34... exf5 {[%clk 0:00:08.5]} 35. d5 {[%clk 0:00:20.4]} 35... Qxe3+ {[%clk
0:00:08.3]} 36. Kxe3 {[%clk 0:00:20.6]} 36... Be4 {[%clk 0:00:08.7]} 37. Rd4
{[%clk 0:00:20.1]} 37... Ra5 {[%clk 0:00:08.8]} 38. f3 {[%clk 0:00:18.2]} 38...
Bc2 {[%clk 0:00:07.9]} 39. b4 {[%clk 0:00:14.1]} 39... Bxd1 {[%clk 0:00:07.8]}
40. bxa5 {[%clk 0:00:14.3]} 40... Bb3 {[%clk 0:00:07.7]} 41. d6 {[%clk
0:00:14.3]} 41... cxd6 {[%clk 0:00:07.8]} 42. Rxd6 {[%clk 0:00:13.7]} 42... Ke7
{[%clk 0:00:07.9]} 43. Kf4 {[%clk 0:00:13.2]} 43... Rb8 {[%clk 0:00:08.5]} 44.
Kxf5 {[%clk 0:00:12.9]} 44... Bxa4 {[%clk 0:00:09]} 45. Re6+ {[%clk 0:00:12.8]}
45... Kf7 {[%clk 0:00:08.4]} 46. Rxf6+ {[%clk 0:00:13.2]} 46... Ke7 {[%clk
0:00:08.9]} 47. Rh6 {[%clk 0:00:13]} 47... Bd7+ {[%clk 0:00:08.9]} 48. Ke5
{[%clk 0:00:12.9]} 48... Rb5 {[%clk 0:00:09.6]} 49. Rh7+ {[%clk 0:00:12.5]}
49... Kd8 {[%clk 0:00:09.8]} 50. Kd6 {[%clk 0:00:13]} 50... Rxa5 {[%clk
0:00:09.8]} 51. Rh8+ {[%clk 0:00:13.4]} 51... Be8 {[%clk 0:00:09.4]} 52. c6
{[%clk 0:00:13.8]} 52... Ra6 {[%clk 0:00:09.8]} 53. Kd5 {[%clk 0:00:12.6]} 53...
Rxc6 {[%clk 0:00:10.4]} 54. Rxe8+ {[%clk 0:00:12.9]} 54... Kc7 {[%clk
0:00:10.8]} 55. Re7+ {[%clk 0:00:12.7]} 55... Kd8 {[%clk 0:00:11.3]} 56. Rxa7
{[%clk 0:00:10.8]} 56... Rc2 {[%clk 0:00:10.8]} 57. Kd6 {[%clk 0:00:08]} 57...
Rd2+ {[%clk 0:00:11]} 58. Ke5 {[%clk 0:00:07.4]} 58... Rxh2 {[%clk 0:00:11.1]}
59. f4 {[%clk 0:00:07.9]} 59... Re2+ {[%clk 0:00:10.8]} 60. Kf6 {[%clk
0:00:08.1]} 60... Rg2 {[%clk 0:00:11.7]} 61. f5 {[%clk 0:00:08.3]} 61... Ke8
{[%clk 0:00:11.1]} 62. Rh7 {[%clk 0:00:08.2]} 62... Rg3 {[%clk 0:00:10]} 63.
Rh8+ {[%clk 0:00:08.4]} 63... Kd7 {[%clk 0:00:10.1]} 64. Kf7 {[%clk 0:00:09]}
64... h4 {[%clk 0:00:08.1]} 65. Rxh4 {[%clk 0:00:08.2]} 65... Rf3 {[%clk
0:00:08]} 66. f6 {[%clk 0:00:08.5]} 66... Kd6 {[%clk 0:00:08.2]} 67. Re4 {[%clk
0:00:05.4]} 67... Kd7 {[%clk 0:00:07.8]} 68. Rd4+ {[%clk 0:00:05.5]} 68... Kc7
{[%clk 0:00:07.8]} 69. Rd1 {[%clk 0:00:06.2]} 69... Kc6 {[%clk 0:00:05.5]} 70.
Ke7 {[%clk 0:00:06.2]} 70... Re3+ {[%clk 0:00:05.6]} 71. Kf8 {[%clk 0:00:06.4]}
71... Rf3 {[%clk 0:00:05.8]} 72. f7 {[%clk 0:00:06.9]} 72... Re3 {[%clk
0:00:05]} 73. Rd4 {[%clk 0:00:05.4]} 73... Kc7 {[%clk 0:00:04.2]} 74. Kg7 {[%clk
0:00:05]} 74... Rg3+ {[%clk 0:00:03.8]} 75. Kf6 {[%clk 0:00:05.4]} 1-0

[Event "Late-Titled-Tuesday-Blitz-February-20-2024"]
[Site "Chess.com"]
[Date "2024.02.20"]
[Round "5"]
[White "MyDream003"]
[Black "Maestro1986"]
[Result "1-0"]
[WhiteElo "2753"]
[BlackElo "2513"]
[TimeControl "180+1"]
[EndTime "14:57:56 PST"]
[Termination "MyDream003 won by checkmate"]

1. e4 {[%clk 0:03:00.3]} 1... c5 {[%clk 0:02:59.5]} 2. Nf3 {[%clk 0:02:55.6]}
2... Nf6 {[%clk 0:02:59.4]} 3. e5 {[%clk 0:02:54.3]} 3... Nd5 {[%clk 0:02:59.5]}
4. Nc3 {[%clk 0:02:54.6]} 4... Nxc3 {[%clk 0:02:59.3]} 5. dxc3 {[%clk
0:02:55.5]} 5... Nc6 {[%clk 0:02:59.9]} 6. Bc4 {[%clk 0:02:50.2]} 6... e6 {[%clk
0:02:57.6]} 7. Qe2 {[%clk 0:02:39.9]} 7... h6 {[%clk 0:02:54.9]} 8. h4 {[%clk
0:02:39.4]} 8... b6 {[%clk 0:02:42.6]} 9. Bf4 {[%clk 0:02:37.9]} 9... Bb7 {[%clk
0:02:42.8]} 10. O-O-O {[%clk 0:02:26.5]} 10... Qc7 {[%clk 0:02:42.8]} 11. Kb1
{[%clk 0:02:17.5]} 11... O-O-O {[%clk 0:02:37.7]} 12. Qd2 {[%clk 0:02:04.6]}
12... Na5 {[%clk 0:02:32.8]} 13. Be2 {[%clk 0:02:04.3]} 13... Bd5 {[%clk
0:02:26.8]} 14. b3 {[%clk 0:01:54.4]} 14... c4 {[%clk 0:02:17.7]} 15. Nd4 {[%clk
0:01:49.4]} 15... a6 {[%clk 0:02:01.6]} 16. Bf3 {[%clk 0:01:46.7]} 16... Bb7
{[%clk 0:01:42.5]} 17. Bxb7+ {[%clk 0:01:28.5]} 17... Nxb7 {[%clk 0:01:38.3]}
18. Nf3 {[%clk 0:01:05.5]} 18... d5 {[%clk 0:01:35.9]} 19. exd6 {[%clk
0:01:03.5]} 19... Bxd6 {[%clk 0:01:35.8]} 20. Bxd6 {[%clk 0:01:03.6]} 20... Rxd6
{[%clk 0:01:35.9]} 21. Qe3 {[%clk 0:01:00.7]} 21... Rhd8 {[%clk 0:01:33]} 22.
Rxd6 {[%clk 0:01:00]} 22... Nxd6 {[%clk 0:01:28.1]} 23. Nd4 {[%clk 0:00:59.6]}
23... Qb7 {[%clk 0:01:04.1]} 24. f3 {[%clk 0:00:57.1]} 24... b5 {[%clk
0:00:59.8]} 25. Qe5 {[%clk 0:00:52.6]} 25... g6 {[%clk 0:00:48.7]} 26. h5 {[%clk
0:00:50.1]} 26... g5 {[%clk 0:00:40.2]} 27. b4 {[%clk 0:00:44]} 27... Ne8 {[%clk
0:00:36.5]} 28. Qc5+ {[%clk 0:00:38.7]} 28... Qc7 {[%clk 0:00:33.5]} 29. Qf8
{[%clk 0:00:38.8]} 29... e5 {[%clk 0:00:19.5]} 30. Nf5 {[%clk 0:00:37.1]} 30...
Nd6 {[%clk 0:00:09.9]} 31. Nxd6+ {[%clk 0:00:34.6]} 31... Qxd6 {[%clk
0:00:10.8]} 32. Qxf7 {[%clk 0:00:34.6]} 32... Rd7 {[%clk 0:00:07.2]} 33. Qf5
{[%clk 0:00:27.9]} 33... Kc7 {[%clk 0:00:08.1]} 34. Re1 {[%clk 0:00:26.3]} 34...
Re7 {[%clk 0:00:08.2]} 35. Kb2 {[%clk 0:00:25.7]} 35... Qe6 {[%clk 0:00:07.9]}
36. Qe4 {[%clk 0:00:24.1]} 36... Qc6 {[%clk 0:00:08.3]} 37. Qe3 {[%clk
0:00:20.9]} 37... Qb6 {[%clk 0:00:08.4]} 38. Qe2 {[%clk 0:00:18.8]} 38... Qd6
{[%clk 0:00:08.5]} 39. Rd1 {[%clk 0:00:19.1]} 39... Qe6 {[%clk 0:00:08.4]} 40.
Qe3 {[%clk 0:00:18.7]} 40... Qb6 {[%clk 0:00:07.7]} 41. Qe4 {[%clk 0:00:18.8]}
41... Qc6 {[%clk 0:00:06.9]} 42. Qf5 {[%clk 0:00:18.1]} 42... Qe6 {[%clk
0:00:05.9]} 43. Qf8 {[%clk 0:00:18.2]} 43... Rd7 {[%clk 0:00:05.7]} 44. Qc5+
{[%clk 0:00:16.5]} 44... Kd8 {[%clk 0:00:06.3]} 45. Re1 {[%clk 0:00:12.7]} 45...
Re7 {[%clk 0:00:05.8]} 46. a3 {[%clk 0:00:10.5]} 46... Ke8 {[%clk 0:00:05.7]}
47. Re2 {[%clk 0:00:10.9]} 47... Kf7 {[%clk 0:00:06.1]} 48. Qe3 {[%clk
0:00:11.3]} 48... Kf6 {[%clk 0:00:06.2]} 49. Qe4 {[%clk 0:00:11.5]} 49... Qf5
{[%clk 0:00:06.7]} 50. Qc6+ {[%clk 0:00:11.9]} 50... Qe6 {[%clk 0:00:06.3]} 51.
Qa8 {[%clk 0:00:12]} 51... Kg7 {[%clk 0:00:06.1]} 52. Qb8 {[%clk 0:00:11.8]}
52... Kf6 {[%clk 0:00:05.3]} 53. Qh8+ {[%clk 0:00:10.9]} 53... Kf5 {[%clk
0:00:05.6]} 54. Re4 {[%clk 0:00:10.3]} 54... Qf6 {[%clk 0:00:04.2]} 55. Qc8+
{[%clk 0:00:09.6]} 55... Qe6 {[%clk 0:00:04.4]} 56. Qf8+ {[%clk 0:00:09.4]}
56... Qf6 {[%clk 0:00:03.8]} 57. Qg8 {[%clk 0:00:09.9]} 57... Rf7 {[%clk
0:00:02.2]} 58. Qe8 {[%clk 0:00:09.1]} 58... Qe6 {[%clk 0:00:02.2]} 59. Qd8
{[%clk 0:00:08.4]} 59... Qf6 {[%clk 0:00:01.8]} 60. Qa8 {[%clk 0:00:07.7]} 60...
Qe6 {[%clk 0:00:01.9]} 61. Qb8 {[%clk 0:00:07.6]} 61... Kf6 {[%clk 0:00:02.3]}
62. g4 {[%clk 0:00:07.6]} 62... Kg7 {[%clk 0:00:02.5]} 63. Rxe5 {[%clk
0:00:07.8]} 63... Qf6 {[%clk 0:00:03]} 64. Re8 {[%clk 0:00:07.3]} 64... Rf8
{[%clk 0:00:03.2]} 65. Qc7+ {[%clk 0:00:05.6]} 65... Rf7 {[%clk 0:00:03.8]} 66.
Qc8 {[%clk 0:00:06.2]} 66... Rf8 {[%clk 0:00:04.5]} 67. Qd7+ {[%clk 0:00:06.7]}
67... Rf7 {[%clk 0:00:05.1]} 68. Qc8 {[%clk 0:00:06.5]} 68... Rf8 {[%clk
0:00:05.6]} 69. Rxf8 {[%clk 0:00:07.2]} 69... Qxf8 {[%clk 0:00:06]} 70. Qxf8+
{[%clk 0:00:06.5]} 70... Kxf8 {[%clk 0:00:06.4]} 71. Kc1 {[%clk 0:00:07.4]}
71... Ke7 {[%clk 0:00:07.2]} 72. Kd2 {[%clk 0:00:08]} 72... Ke6 {[%clk 0:00:08]}
73. Ke3 {[%clk 0:00:08.4]} 73... Ke5 {[%clk 0:00:08.6]} 74. f4+ {[%clk
0:00:08.5]} 74... gxf4+ {[%clk 0:00:08.9]} 75. Kf3 {[%clk 0:00:09]} 75... Ke6
{[%clk 0:00:08.7]} 76. Kxf4 {[%clk 0:00:08.9]} 76... Kf6 {[%clk 0:00:09.5]} 77.
g5+ {[%clk 0:00:09.5]} 77... hxg5+ {[%clk 0:00:10]} 78. Kg4 {[%clk 0:00:10.1]}
78... Kf7 {[%clk 0:00:10.4]} 79. Kxg5 {[%clk 0:00:11]} 79... Kg7 {[%clk
0:00:11.1]} 80. Kf5 {[%clk 0:00:09.5]} 80... Kh6 {[%clk 0:00:11.5]} 81. Ke5
{[%clk 0:00:10.2]} 81... Kxh5 {[%clk 0:00:12.4]} 82. Kd5 {[%clk 0:00:11]} 82...
Kg4 {[%clk 0:00:13.3]} 83. Kc5 {[%clk 0:00:11.5]} 83... Kf3 {[%clk 0:00:14.2]}
84. Kb6 {[%clk 0:00:12.3]} 84... Ke3 {[%clk 0:00:15.1]} 85. Kxa6 {[%clk
0:00:12.8]} 85... Kd2 {[%clk 0:00:16]} 86. Kxb5 {[%clk 0:00:13.1]} 86... Kxc3
{[%clk 0:00:16.9]} 87. Kc5 {[%clk 0:00:13.1]} 87... Kb2 {[%clk 0:00:16.6]} 88.
Kxc4 {[%clk 0:00:12.8]} 88... Kxa3 {[%clk 0:00:17.5]} 89. b5 {[%clk 0:00:13.7]}
89... Ka4 {[%clk 0:00:18.2]} 90. b6 {[%clk 0:00:14.4]} 90... Ka5 {[%clk
0:00:19.1]} 91. b7 {[%clk 0:00:15]} 91... Ka6 {[%clk 0:00:20]} 92. b8=Q {[%clk
0:00:14.7]} 92... Ka5 {[%clk 0:00:20.7]} 93. Qb5# {[%clk 0:00:14.7]} 1-0

[Event "Late-Titled-Tuesday-Blitz-February-20-2024"]
[Site "Chess.com"]
[Date "2024.02.20"]
[Round "5"]
[White "vi_pranav"]
[Black "Oleksandr_Bortnyk"]
[Result "1-0"]
[WhiteElo "3017"]
[BlackElo "3067"]
[TimeControl "180+1"]
[EndTime "14:58:01 PST"]
[Termination "vi_pranav won on time"]

1. Nf3 {[%clk 0:02:59.1]} 1... Nf6 {[%clk 0:02:52.3]} 2. g3 {[%clk 0:02:59]}
2... b6 {[%clk 0:02:50.6]} 3. Bg2 {[%clk 0:02:59.2]} 3... Bb7 {[%clk 0:02:51.5]}
4. O-O {[%clk 0:02:59.8]} 4... g6 {[%clk 0:02:52.2]} 5. d3 {[%clk 0:03:00.1]}
5... Bg7 {[%clk 0:02:52]} 6. e4 {[%clk 0:03:00.4]} 6... d6 {[%clk 0:02:50.8]} 7.
Re1 {[%clk 0:02:58.9]} 7... Nfd7 {[%clk 0:02:46.1]} 8. d4 {[%clk 0:02:56.9]}
8... c5 {[%clk 0:02:46.4]} 9. e5 {[%clk 0:02:26.1]} 9... O-O {[%clk 0:01:15.7]}
10. exd6 {[%clk 0:02:15.5]} 10... exd6 {[%clk 0:01:14.7]} 11. Bg5 {[%clk
0:02:13.9]} 11... Qc7 {[%clk 0:01:03.5]} 12. Nc3 {[%clk 0:01:53]} 12... cxd4
{[%clk 0:00:49.4]} 13. Nb5 {[%clk 0:01:18.1]} 13... Qc5 {[%clk 0:00:49]} 14.
Nbxd4 {[%clk 0:01:17.8]} 14... Bxf3 {[%clk 0:00:27.7]} 15. Nxf3 {[%clk 0:00:53]}
15... Bxb2 {[%clk 0:00:28.6]} 16. Bh6 {[%clk 0:00:36.5]} 16... Rc8 {[%clk
0:00:26.9]} 17. Rb1 {[%clk 0:00:26]} 17... Bc3 {[%clk 0:00:27]} 18. Re3 {[%clk
0:00:25.9]} 18... Nc6 {[%clk 0:00:24.3]} 19. Ng5 {[%clk 0:00:20.3]} 19... Bg7
{[%clk 0:00:24.1]} 20. Bxg7 {[%clk 0:00:13]} 20... Kxg7 {[%clk 0:00:25]} 21. Bd5
{[%clk 0:00:13.6]} 21... Nde5 {[%clk 0:00:21.4]} 22. Bxf7 {[%clk 0:00:07.8]}
22... Nd4 {[%clk 0:00:17.5]} 23. Bb3 {[%clk 0:00:04.8]} 23... Re8 {[%clk
0:00:04.7]} 24. Ne4 {[%clk 0:00:04.2]} 24... Qb4 {[%clk 0:00:04]} 25. c3 {[%clk
0:00:03.6]} 25... Ndf3+ {[%clk 0:00:04.2]} 26. Kg2 {[%clk 0:00:03.5]} 26... Qb5
{[%clk 0:00:02.3]} 27. Rxf3 {[%clk 0:00:03.7]} 27... Nxf3 {[%clk 0:00:02.9]} 28.
Qxf3 {[%clk 0:00:04.6]} 28... Qe5 {[%clk 0:00:03.3]} 29. Nd2 {[%clk 0:00:03.9]}
29... Rac8 {[%clk 0:00:03.2]} 30. c4 {[%clk 0:00:03.9]} 30... Rf8 {[%clk
0:00:02]} 31. Qd5 {[%clk 0:00:04.2]} 31... Qe2 {[%clk 0:00:01.7]} 32. Rf1 {[%clk
0:00:04.4]} 32... Rc5 {[%clk 0:00:01.7]} 33. Qd4+ {[%clk 0:00:04.2]} 33... Qe5
{[%clk 0:00:02.2]} 34. Qxe5+ {[%clk 0:00:04.4]} 34... Rxe5 {[%clk 0:00:03.1]}
35. Nf3 {[%clk 0:00:03.9]} 35... Re2 {[%clk 0:00:03.7]} 36. Rd1 {[%clk
0:00:03.8]} 36... Rf6 {[%clk 0:00:03.3]} 37. Rd4 {[%clk 0:00:03.6]} 37... h5
{[%clk 0:00:03.7]} 38. h4 {[%clk 0:00:04]} 38... a5 {[%clk 0:00:04.4]} 39. Rd5
{[%clk 0:00:03.1]} 39... Kf8 {[%clk 0:00:04.7]} 40. Rb5 {[%clk 0:00:03.2]} 40...
a4 {[%clk 0:00:04.8]} 41. Bxa4 {[%clk 0:00:03.5]} 41... Rxa2 {[%clk 0:00:05.7]}
42. Bb3 {[%clk 0:00:04.2]} 42... Ra6 {[%clk 0:00:06.2]} 43. Bc2 {[%clk
0:00:04.1]} 43... Kg7 {[%clk 0:00:03.5]} 44. Be4 {[%clk 0:00:04.4]} 44... Kf8
{[%clk 0:00:02.2]} 45. Bd5 {[%clk 0:00:04.9]} 45... Kg7 {[%clk 0:00:02.5]} 46.
Rb2 {[%clk 0:00:05.4]} 46... Kf8 {[%clk 0:00:03]} 47. Nd4 {[%clk 0:00:05.9]}
47... Kg7 {[%clk 0:00:03.1]} 48. Ne6+ {[%clk 0:00:06.2]} 48... Kh8 {[%clk
0:00:03]} 49. Nc7 {[%clk 0:00:06.2]} 49... Ra7 {[%clk 0:00:02.3]} 50. Ne8 {[%clk
0:00:06.6]} 50... Rf8 {[%clk 0:00:02.8]} 51. Nxd6 {[%clk 0:00:07.1]} 51... Rd7
{[%clk 0:00:03.7]} 52. Ne4 {[%clk 0:00:06.7]} 52... Rb8 {[%clk 0:00:03.9]} 53.
Nc3 {[%clk 0:00:05.3]} 53... Kg7 {[%clk 0:00:03.3]} 54. Re2 {[%clk 0:00:05.6]}
54... Rbd8 {[%clk 0:00:02.6]} 55. Re6 {[%clk 0:00:05.1]} 55... Rb8 {[%clk
0:00:03.3]} 56. Be4 {[%clk 0:00:04.5]} 56... Kf7 {[%clk 0:00:02.9]} 57. Rxg6
{[%clk 0:00:04.9]} 57... b5 {[%clk 0:00:01.8]} 58. cxb5 {[%clk 0:00:04.7]} 58...
Rd4 {[%clk 0:00:01.6]} 59. Rc6 {[%clk 0:00:04.7]} 59... Rd2 {[%clk 0:00:01.6]}
60. Bd5+ {[%clk 0:00:04.9]} 60... Kg7 {[%clk 0:00:02.2]} 61. Bf3 {[%clk
0:00:05.2]} 61... Rd3 {[%clk 0:00:02.4]} 62. Rc7+ {[%clk 0:00:05.6]} 62... Kh6
{[%clk 0:00:02.6]} 63. Rc6+ {[%clk 0:00:06]} 63... Kg7 {[%clk 0:00:03.4]} 64.
Bxh5 {[%clk 0:00:06.5]} 64... Rf8 {[%clk 0:00:03.5]} 65. Bg4 {[%clk 0:00:05.3]}
65... Rd4 {[%clk 0:00:03.6]} 66. f3 {[%clk 0:00:04.2]} 66... Rd2+ {[%clk
0:00:03.6]} 67. Kh3 {[%clk 0:00:04.7]} 67... Rb2 {[%clk 0:00:04.4]} 68. Bh5
{[%clk 0:00:04.8]} 68... Kh8 {[%clk 0:00:04.4]} 69. Ne4 {[%clk 0:00:04.5]} 69...
Rxb5 {[%clk 0:00:04.2]} 70. Bg4 {[%clk 0:00:04.2]} 70... Rb1 {[%clk 0:00:03.9]}
71. f4 {[%clk 0:00:03.1]} 71... Rh1+ {[%clk 0:00:03.5]} 72. Kg2 {[%clk
0:00:03.6]} 72... Ra1 {[%clk 0:00:04.4]} 73. Ng5 {[%clk 0:00:04.2]} 73... Rb8
{[%clk 0:00:04.9]} 74. Bf3 {[%clk 0:00:04.1]} 74... Ra3 {[%clk 0:00:03.8]} 75.
Kh3 {[%clk 0:00:05]} 75... Ra5 {[%clk 0:00:03.4]} 76. Kg4 {[%clk 0:00:05.4]}
76... Kg7 {[%clk 0:00:03.8]} 77. Rc7+ {[%clk 0:00:05.8]} 77... Kh8 {[%clk
0:00:03.6]} 78. Be4 {[%clk 0:00:06.1]} 78... Ra6 {[%clk 0:00:03.9]} 79. h5
{[%clk 0:00:06.5]} 79... Kg8 {[%clk 0:00:04.3]} 80. Bg6 {[%clk 0:00:06.8]} 80...
Rf8 {[%clk 0:00:03]} 81. Bd3 {[%clk 0:00:05.9]} 81... Rh6 {[%clk 0:00:02.4]} 82.
Bc4+ {[%clk 0:00:06.4]} 82... Kh8 {[%clk 0:00:02.9]} 83. Nf7+ {[%clk 0:00:06.9]}
83... Kg7 {[%clk 0:00:01.9]} 84. Nxh6+ {[%clk 0:00:07]} 84... Kxh6 {[%clk
0:00:02.6]} 85. Rc6+ {[%clk 0:00:07.7]} 85... Kg7 {[%clk 0:00:03]} 86. h6+
{[%clk 0:00:08.2]} 86... Kh7 {[%clk 0:00:03.4]} 87. Bd3+ {[%clk 0:00:08.3]}
87... Kh8 {[%clk 0:00:03.4]} 88. Bf5 {[%clk 0:00:09]} 88... Rg8+ {[%clk
0:00:03.7]} 89. Kf3 {[%clk 0:00:09.5]} 89... Rb8 {[%clk 0:00:03]} 90. Rc8+
{[%clk 0:00:09.7]} 90... Rxc8 {[%clk 0:00:02.9]} 91. Bxc8 {[%clk 0:00:10.6]} 1-0